bitfinex/quotes_BTCUSD_20250525
["timestamp","ask_amount","ask_price","bid_price","bid_amount"]
[1748135943635,0.0621,107200.0,107170.0,0.44819448]
[1748135947651,0.0621,107200.0,107180.0,0.96988]
[1748135947869,0.0621,107200.0,107190.0,0.2792]
[1748135954001,0.30554129,107220.0,107190.0,0.2792]
[1748135954002,0.0638,107210.0,107190.0,0.2792]
[1748135954225,0.0638,107210.0,107190.0,0.36874556]
[1748135954404,0.0638,107210.0,107200.0,0.00116307]
[1748135954955,0.03145154,107220.0,107200.0,0.00116319]
[1748135955168,0.06395154,107220.0,107200.0,0.42954556]
[1748135955368,0.00015154,107220.0,107200.0,0.49154556]
[1748135955579,0.00015154,107220.0,107210.0,0.91263356]
[1748135955940,0.00015154,107220.0,107210.0,0.89867956]
[1748135956303,0.00015154,107220.0,107210.0,0.84840856]
[1748135956459,0.00015154,107220.0,107210.0,0.83198556]
[1748135956664,0.00015154,107220.0,107210.0,0.75904556]
[1748135956867,0.00015154,107220.0,107210.0,0.57895556]
[1748135957490,0.00015154,107220.0,107210.0,1.39119556]
[1748135957742,0.00015154,107220.0,107210.0,1.24178556]
[1748135957964,0.00015154,107220.0,107210.0,0.847787]
[1748135958193,0.06395154,107220.0,107210.0,0.34]
[1748135958400,0.06395154,107220.0,107210.0,0.6192]
[1748135959616,0.06395154,107220.0,107210.0,0.61916]
[1748135960030,0.00015154,107220.0,107210.0,0.61916]
[1748135960459,0.00015154,107220.0,107210.0,1.87343856]
[1748135960656,0.00015154,107220.0,107210.0,1.62047156]
[1748135961076,0.00015154,107220.0,107210.0,0.95457656]
[1748135965714,0.00858995,107260.0,107240.0,0.0314]
[1748135965940,0.00909497,107260.0,107250.0,0.3844059]
[1748135966151,0.00909497,107260.0,107250.0,1.18780741]
[1748135966361,0.00909497,107260.0,107250.0,0.83344641]
[1748135967005,0.00050502,107260.0,107250.0,0.83344641]
[1748135967207,0.00050502,107260.0,107250.0,0.85921386]
[1748135967415,0.00050502,107260.0,107250.0,0.88051873]
[1748135967627,0.00050502,107260.0,107250.0,1.84879873]
[1748135968063,0.00050502,107260.0,107250.0,1.84979873]
[1748135968691,0.00050502,107260.0,107250.0,1.29163873]
[1748135968898,0.00050502,107260.0,107250.0,1.27033386]
[1748135969141,0.00050502,107260.0,107250.0,0.56605986]
[1748135969336,0.00050502,107260.0,107250.0,1.18513986]
[1748135969543,0.00050502,107260.0,107250.0,1.15937241]
[1748135969951,0.00050502,107260.0,107250.0,1.17307837]
[1748135970438,0.00050502,107260.0,107250.0,1.23847837]
[1748135970625,0.00050502,107260.0,107250.0,1.32424582]
[1748135970831,0.0619,107300.0,107270.0,0.07994085]
[1748135971041,0.06195051,107300.0,107280.0,2.24366202]
[1748135971252,0.06195051,107300.0,107280.0,0.70862556]
[1748135972442,0.06195051,107300.0,107290.0,0.0011583]
[1748135972675,5.051e-05,107300.0,107290.0,0.52946431]
[1748135972897,5.051e-05,107300.0,107290.0,0.52830601]
[1748135973429,5.051e-05,107300.0,107290.0,0.57604686]
[1748135973628,5.051e-05,107300.0,107290.0,0.67604686]
[1748135974050,0.00105051,107300.0,107290.0,0.64284686]
[1748135974466,5.051e-05,107300.0,107290.0,0.92184686]
[1748135974665,5.051e-05,107300.0,107290.0,0.89607941]
[1748135974870,5.051e-05,107300.0,107290.0,0.89807941]
[1748135976786,5.051e-05,107300.0,107290.0,1.23807941]
[1748135977613,5.051e-05,107300.0,107290.0,2.20583941]
[1748135977805,5.051e-05,107300.0,107290.0,2.23160686]
[1748135978007,5.051e-05,107300.0,107290.0,2.20583941]
[1748135978739,5.051e-05,107300.0,107290.0,1.23803941]
[1748135979777,0.06195051,107300.0,107290.0,0.88076045]
[1748135979992,0.06195051,107300.0,107290.0,0.72092]
[1748135980203,5.051e-05,107300.0,107290.0,1.41912056]
[1748135980409,5.051e-05,107300.0,107290.0,1.43366141]
[1748135982249,5.051e-05,107300.0,107290.0,1.45942886]
[1748135983059,5.051e-05,107300.0,107290.0,1.43366141]
[1748135983264,5.051e-05,107300.0,107290.0,1.45942886]
[1748135985449,5.051e-05,107300.0,107290.0,1.43366141]
[1748135985897,5.051e-05,107300.0,107290.0,1.54616141]
[1748135986104,5.051e-05,107300.0,107290.0,1.55616141]
[1748135987363,0.0632,107330.0,107300.0,0.01454085]
[1748135987580,0.0632,107330.0,107310.0,2.07726109]
[1748135987784,0.0632,107330.0,107320.0,1.29022]
[1748135987996,0.0632,107330.0,107320.0,1.2496]
[1748135988400,0.0649,107340.0,107320.0,1.35368641]
[1748135988640,0.06505143,107350.0,107330.0,1.88982844]
[1748135988850,0.06505143,107350.0,107340.0,0.0011557]
[1748135989281,0.0491181,107380.0,107340.0,0.10524211]
[1748135989520,0.0491181,107380.0,107360.0,0.01454085]
[1748135989521,0.01672268,107380.0,107360.0,0.01454085]
[1748135989737,0.01672268,107380.0,107370.0,1.78181836]
[1748135989945,0.01672268,107380.0,107370.0,1.78066541]
[1748135990374,0.0649,107400.0,107380.0,0.34]
[1748135990599,0.06505131,107400.0,107390.0,0.27888]
[1748135991239,0.07358548,107400.0,107390.0,0.27888]
[1748135992534,0.0329,107390.0,107380.0,0.44324839]
[1748135992748,0.0649,107390.0,107380.0,0.29250283]
[1748135993411,0.0649,107390.0,107380.0,1.24447039]
[1748135993628,0.0649,107390.0,107380.0,1.19930439]
[1748135993833,0.001,107390.0,107380.0,1.19930439]
[1748135996558,0.0655,107390.0,107380.0,1.19926439]
[1748135997623,0.0655,107390.0,107380.0,2.16570439]
[1748135997826,0.0655,107390.0,107380.0,1.60826439]
[1748135999098,0.0655,107390.0,107380.0,0.92050439]
[1748135999314,0.0655,107390.0,107380.0,1.19922439]
[1748136000411,0.001,107390.0,107380.0,1.19922439]
[1748136000860,0.001,107390.0,107380.0,0.92050439]
[1748136001061,0.0325,107390.0,107380.0,1.19922439]
[1748136001277,0.0644,107390.0,107380.0,1.19922439]
[1748136002935,0.001,107390.0,107380.0,1.24946824]
[1748136003148,0.0648,107410.0,107390.0,0.01454085]
[1748136003376,0.0648,107410.0,107400.0,0.08954556]
[1748136003806,0.0648,107410.0,107400.0,0.36822556]
[1748136004012,0.0648,107410.0,107400.0,0.27868]
[1748136004220,0.0329,107400.0,107390.0,0.01454085]
[1748136004432,0.30508219,107440.0,107390.0,0.01454085]
[1748136004433,0.6967,107450.0,107390.0,0.72276641]
[1748136004641,0.0648,107410.0,107390.0,0.72276641]
[1748136005466,0.0648,107410.0,107400.0,0.27868]
[1748136005890,0.0648,107400.0,107380.0,0.01370283]
[1748136006104,0.0648,107390.0,107380.0,0.55794055]
[1748136006307,0.0648,107390.0,107380.0,4.22380287]
[1748136006514,0.0648,107390.0,107380.0,4.45781604]
[1748136007181,0.0648,107390.0,107380.0,4.16564004]
[1748136007387,0.0648,107390.0,107380.0,4.44432004]
[1748136007598,0.0648,107390.0,107380.0,4.85324004]
[1748136007805,0.0648,107390.0,107380.0,4.77379804]
[1748136007986,0.0648,107390.0,107380.0,3.99665248]
[1748136008185,0.0648,107390.0,107380.0,4.27633248]
[1748136009340,0.0648,107390.0,107380.0,3.99765248]
[1748136009611,0.0648,107390.0,107380.0,4.27633248]
[1748136009857,0.0648,107390.0,107380.0,3.99765248]
[1748136010035,0.0648,107390.0,107380.0,0.73379048]
[1748136010284,0.0648,107390.0,107380.0,0.11515048]
[1748136010490,0.0648,107390.0,107380.0,0.27979131]
[1748136010669,0.00290987,107400.0,107350.0,0.01113835]
[1748136010909,0.00290987,107400.0,107370.0,0.1]
[1748136010910,0.0633,107380.0,107370.0,0.1]
[1748136011391,0.0633,107370.0,107350.0,0.10068391]
[1748136011600,0.0633,107370.0,107360.0,0.34]
[1748136011799,0.0633,107370.0,107350.0,0.0983731]
[1748136012004,0.0633,107370.0,107360.0,0.34]
[1748136012200,0.0633,107370.0,107360.0,0.61864]
[1748136013253,0.0633,107370.0,107360.0,0.61868]
[1748136014162,0.0643,107370.0,107360.0,0.61868]
[1748136015182,0.0643,107370.0,107360.0,0.34]
[1748136015996,0.0633,107360.0,107350.0,0.01364533]
[1748136016214,0.0633,107360.0,107350.0,0.27868]
[1748136016529,0.0633,107350.0,107340.0,0.01113835]
[1748136016757,0.0633,107350.0,107340.0,0.29097437]
[1748136016958,0.0633,107350.0,107340.0,0.28981835]
[1748136017138,0.0633,107350.0,107340.0,0.29286596]
[1748136017352,0.0633,107370.0,107340.0,0.62982352]
[1748136017555,0.0633,107360.0,107350.0,0.56531498]
[1748136017873,0.002,107350.0,107340.0,0.38241152]
[1748136018016,0.002,107350.0,107340.0,0.96315452]
[1748136018233,0.002,107350.0,107340.0,0.45946452]
[1748136018433,0.0633,107360.0,107350.0,0.34]
[1748136018676,0.0663,107360.0,107350.0,0.34]
[1748136018886,0.0663,107360.0,107350.0,0.34050458]
[1748136020210,0.0663,107360.0,107350.0,0.00050458]
[1748136021798,0.0663,107360.0,107350.0,0.27922458]
[1748136022752,0.0663,107360.0,107350.0,0.00050458]
[1748136022889,0.0663,107360.0,107350.0,0.27922458]
[1748136024379,0.003,107360.0,107350.0,0.27922458]
[1748136024610,0.003,107360.0,107350.0,0.36877014]
[1748136024841,0.003,107360.0,107350.0,1.08924914]
[1748136025052,0.003,107360.0,107350.0,1.13508999]
[1748136025269,0.003,107360.0,107350.0,1.14395471]
[1748136025481,0.003,107360.0,107350.0,1.45265471]
[1748136025700,0.003,107360.0,107350.0,1.43811386]
[1748136025939,0.003,107360.0,107350.0,0.89812786]
[1748136027474,0.0663,107380.0,107360.0,0.34]
[1748136027715,0.0663,107390.0,107380.0,0.34]
[1748136027924,0.0663,107390.0,107380.0,0.27872]
[1748136029637,0.0663,107390.0,107350.0,0.01454085]
[1748136029840,0.0663,107390.0,107360.0,4.17922656]
[1748136030088,0.0663,107390.0,107370.0,2.09265165]
[1748136030304,0.0663,107400.0,107380.0,0.897332]
[1748136030521,0.10598497,107440.0,107390.0,0.10523935]
[1748136030522,0.07157913,107430.0,107390.0,0.10523935]
[1748136030729,0.03205807,107440.0,107410.0,0.01454085]
[1748136030944,0.03205807,107440.0,107420.0,1.71771291]
[1748136031154,0.03205807,107440.0,107430.0,3.72549914]
[1748136031395,0.03205807,107440.0,107430.0,3.82843541]
[1748136031622,0.0331,107460.0,107430.0,3.82843541]
[1748136031623,0.09835807,107460.0,107430.0,3.82843541]
[1748136031835,0.00050458,107440.0,107430.0,0.30212824]
[1748136032051,0.00050458,107440.0,107430.0,5.31949392]
[1748136032680,0.09835807,107460.0,107440.0,0.34]
[1748136032877,0.09850941,107460.0,107450.0,1.200822]
[1748136033084,0.09850941,107460.0,107450.0,0.898987]
[1748136033505,0.09850941,107460.0,107450.0,1.177707]
[1748136033704,0.09850941,107460.0,107450.0,0.898987]
[1748136033998,0.09850941,107460.0,107450.0,0.61864]
[1748136034213,0.10378854,107460.0,107450.0,0.34]
[1748136034425,0.10850941,107460.0,107450.0,0.27864]
[1748136035673,0.06977913,107450.0,107430.0,0.01364212]
[1748136035847,0.06977913,107450.0,107440.0,0.27864]
[1748136037341,0.07977913,107450.0,107440.0,0.27864]
[1748136037510,0.07977913,107450.0,107440.0,1.2438]
[1748136038331,0.07977913,107450.0,107440.0,0.68664]
[1748136038825,0.07977913,107450.0,107430.0,0.35424556]
[1748136038826,0.04737913,107450.0,107430.0,0.01424556]
[1748136039119,0.0308,107440.0,107410.0,0.01454085]
[1748136039283,0.0308,107440.0,107420.0,0.36814556]
[1748136039489,0.0308,107440.0,107430.0,0.276357]
[1748136039692,0.0608,107440.0,107430.0,0.616357]
[1748136040627,0.00527913,107450.0,107430.0,0.616357]
[1748136040832,0.0608,107450.0,107430.0,0.42954556]
[1748136042307,0.06607913,107450.0,107430.0,0.42954556]
[1748136042506,0.0608,107450.0,107430.0,0.42954556]
[1748136042727,0.06607913,107450.0,107430.0,0.44327995]
[1748136044218,0.0645,107440.0,107430.0,0.35373439]
[1748136044422,0.0645,107440.0,107430.0,0.63229439]
[1748136047045,0.0645,107440.0,107430.0,0.35373439]
[1748136047267,0.0645,107440.0,107430.0,0.63225439]
[1748136047436,0.0645,107440.0,107430.0,1.59625439]
[1748136048452,0.0645,107440.0,107430.0,0.91077439]
[1748136048688,0.0645,107440.0,107430.0,0.35373439]
[1748136048869,0.06977913,107440.0,107430.0,0.01373439]
[1748136049114,0.06977913,107440.0,107430.0,0.27852]
[1748136049494,0.031,107430.0,107390.0,0.37873835]
[1748136049728,0.0612,107420.0,107410.0,0.1]
[1748136049939,0.06647913,107420.0,107410.0,0.1]
[1748136050167,0.06647913,107420.0,107410.0,0.20623092]
[1748136050386,0.06647913,107420.0,107410.0,0.545079]
[1748136050603,0.0612,107420.0,107410.0,0.545079]
[1748136050802,0.0612,107430.0,107410.0,0.64850479]
[1748136050991,0.06135126,107430.0,107410.0,0.54342579]
[1748136051355,0.06663039,107430.0,107410.0,0.54342579]
[1748136053781,0.06135126,107430.0,107410.0,0.54342579]
[1748136054261,0.06135126,107430.0,107410.0,0.55226076]
[1748136054898,0.06135126,107430.0,107420.0,0.623265]
[1748136055103,0.06135126,107430.0,107420.0,0.431906]
[1748136055321,0.06663039,107430.0,107420.0,0.128393]
[1748136055530,0.06663039,107430.0,107410.0,0.45226076]
[1748136055736,0.06663039,107430.0,107410.0,0.55226076]
[1748136055949,0.06663039,107430.0,107420.0,0.00883497]
[1748136056360,0.06135126,107430.0,107420.0,0.40298197]
[1748136056617,0.06135126,107430.0,107420.0,0.394147]
[1748136057454,0.06135126,107430.0,107420.0,0.40298197]
[1748136057661,0.06135126,107430.0,107420.0,1.36702197]
[1748136058394,0.06135126,107430.0,107420.0,0.80998197]
[1748136058604,0.00015126,107430.0,107420.0,1.23952753]
[1748136059283,0.00015126,107430.0,107420.0,1.25066588]
[1748136059507,0.00015126,107430.0,107420.0,0.84366588]
[1748136059678,0.00015126,107430.0,107420.0,0.85820673]
[1748136060668,0.00015126,107430.0,107420.0,0.86191951]
[1748136062162,0.00015126,107430.0,107420.0,1.14047951]
[1748136062987,0.00015126,107430.0,107420.0,1.12593866]
[1748136063186,0.06325126,107430.0,107420.0,1.10355466]
[1748136063430,0.06325126,107430.0,107420.0,0.7354491]
[1748136063629,0.06325126,107430.0,107420.0,0.6422461]
[1748136063836,0.06325126,107430.0,107420.0,0.7642171]
[1748136064426,0.06325126,107430.0,107420.0,0.77533395]
[1748136065419,0.06325126,107430.0,107420.0,0.7642171]
[1748136065938,0.06325126,107430.0,107420.0,0.7641771]
[1748136066832,0.06325126,107430.0,107420.0,0.3636861]
[1748136067075,0.06325126,107430.0,107420.0,0.3022061]
[1748136067296,0.07325126,107430.0,107420.0,0.3022061]
[1748136067513,0.07325126,107430.0,107420.0,0.16479497]
[1748136067735,0.07325126,107430.0,107420.0,0.69431497]
[1748136068186,0.07325126,107430.0,107420.0,1.03431497]
[1748136069036,0.07325126,107430.0,107420.0,0.34883497]
[1748136069264,0.15279682,107430.0,107420.0,0.62735497]
[1748136069904,0.07325126,107430.0,107420.0,0.62735497]
[1748136071910,0.07325126,107430.0,107420.0,0.28735497]
[1748136071911,0.15279682,107430.0,107420.0,0.28735497]
[1748136072351,0.15279682,107430.0,107420.0,0.27852]
[1748136072566,0.0726,107420.0,107410.0,0.01388023]
[1748136072786,0.0726,107420.0,107410.0,0.73244023]
[1748136073003,0.0726,107420.0,107410.0,0.71856]
[1748136073212,0.0726,107420.0,107410.0,0.72745182]
[1748136075278,0.15214556,107420.0,107410.0,0.34889182]
[1748136075493,0.15505469,107420.0,107410.0,0.28745182]
[1748136076533,0.15505469,107420.0,107410.0,0.27856]
[1748136077580,0.15505469,107420.0,107410.0,1.24164]
[1748136080302,0.15505469,107420.0,107400.0,0.01417925]
[1748136080303,0.09245469,107420.0,107400.0,0.01417925]
[1748136080492,0.00527913,107390.0,107370.0,0.35112079]
[1748136080687,0.00527913,107390.0,107380.0,0.858778]
[1748136080920,0.03537913,107390.0,107380.0,0.838699]
[1748136081684,0.00527913,107390.0,107380.0,0.838699]
[1748136081886,0.0054303,107390.0,107380.0,0.84757335]
[1748136083459,0.0054303,107390.0,107380.0,0.56897335]
[1748136083658,0.0054303,107390.0,107380.0,0.74119535]
[1748136083659,0.0701303,107390.0,107380.0,0.74119535]
[1748136084476,0.0054303,107390.0,107380.0,2.03770535]
[1748136084729,0.0054303,107390.0,107380.0,1.92931635]
[1748136084935,0.0054303,107390.0,107380.0,1.91494235]
[1748136085567,0.0054303,107390.0,107380.0,1.88120335]
[1748136085773,0.0054303,107390.0,107380.0,1.69048435]
[1748136085949,0.0054303,107390.0,107380.0,1.50682435]
[1748136086365,0.0054303,107390.0,107380.0,1.16682435]
[1748136086934,0.0054303,107390.0,107380.0,1.15795]
[1748136087567,0.0054303,107390.0,107380.0,2.12123]
[1748136088418,0.0054303,107390.0,107380.0,1.90403]
[1748136090179,0.00015117,107390.0,107380.0,1.58749556]
[1748136090405,0.6967,107430.0,107380.0,1.58749556]
[1748136090406,0.03657913,107420.0,107390.0,0.34]
[1748136090614,0.06707913,107420.0,107410.0,0.34]
[1748136091083,0.0618,107420.0,107410.0,0.34]
[1748136092172,0.0718,107420.0,107410.0,0.34]
[1748136092595,0.06707913,107410.0,107390.0,0.42954556]
[1748136092808,0.06707913,107400.0,107390.0,0.34]
[1748136093019,0.06707913,107400.0,107390.0,0.568121]
[1748136093240,0.06707913,107400.0,107390.0,0.846761]
[1748136093449,0.06707913,107400.0,107390.0,0.85563684]
[1748136094772,0.07657913,107410.0,107390.0,0.85563684]
[1748136094987,0.00527913,107400.0,107390.0,0.34887584]
[1748136095190,0.00527913,107400.0,107390.0,0.70436184]
[1748136095392,0.00527913,107400.0,107390.0,0.42572184]
[1748136095518,0.00527913,107400.0,107390.0,0.70436184]
[1748136097322,0.00527913,107400.0,107390.0,0.76572184]
[1748136097544,0.00527913,107400.0,107390.0,2.00764184]
[1748136097755,0.0713,107410.0,107400.0,0.34]
[1748136099714,0.0713,107410.0,107400.0,0.34889219]
[1748136100246,0.0713,107410.0,107400.0,0.00889219]
[1748136100363,0.0713,107410.0,107400.0,0.01004495]
[1748136101463,0.0613,107410.0,107400.0,0.01004495]
[1748136101669,0.06887913,107430.0,107400.0,1.08912851]
[1748136101867,0.06887913,107430.0,107410.0,1.91736556]
[1748136102139,0.06887913,107430.0,107420.0,0.85281043]
[1748136102343,0.06887913,107430.0,107420.0,0.851659]
[1748136102566,0.06887913,107430.0,107420.0,0.724604]
[1748136103413,0.06903039,107430.0,107420.0,0.724604]
[1748136103620,0.06903039,107430.0,107420.0,0.73349619]
[1748136104031,0.06903039,107430.0,107420.0,1.07349619]
[1748136104231,0.06375126,107430.0,107420.0,1.16304175]
[1748136106390,0.03075126,107430.0,107420.0,1.16304175]
[1748136106595,0.00015126,107430.0,107420.0,1.16304175]
[1748136107636,0.00015126,107430.0,107420.0,2.12524175]
[1748136108047,0.00543039,107430.0,107420.0,2.12524175]
[1748136108282,0.00015126,107430.0,107420.0,1.56808175]
[1748136111109,0.00543039,107430.0,107420.0,1.16304175]
[1748136112754,0.00543039,107430.0,107420.0,0.88440175]
[1748136112972,0.06903039,107430.0,107420.0,0.84671375]
[1748136114156,0.00543039,107430.0,107420.0,0.84671375]
[1748136115851,0.00015126,107430.0,107420.0,0.84671375]
[1748136117173,0.00543039,107430.0,107420.0,0.84671375]
[1748136117588,0.00015126,107430.0,107420.0,1.80871375]
[1748136118755,0.00015126,107430.0,107420.0,1.25167375]
[1748136119446,0.03065126,107430.0,107420.0,1.25167375]
[1748136119656,0.00015126,107430.0,107420.0,0.8612546]
[1748136123407,0.06295126,107430.0,107420.0,0.8612546]
[1748136123834,0.06295126,107430.0,107420.0,0.84667375]
[1748136127418,0.00015126,107430.0,107420.0,0.88597096]
[1748136127631,0.00015126,107430.0,107420.0,1.84797096]
[1748136127852,0.00015126,107430.0,107420.0,1.85909175]
[1748136129216,0.00015126,107430.0,107420.0,1.30205175]
[1748136129433,0.00015126,107430.0,107420.0,0.89709175]
[1748136129663,0.00015126,107430.0,107420.0,0.92469175]
[1748136129888,0.0628,107450.0,107430.0,0.01454085]
[1748136129889,0.0326,107450.0,107430.0,0.01454085]
[1748136130071,0.0628,107460.0,107440.0,2.63415612]
[1748136130351,0.0628,107460.0,107450.0,1.472656]
[1748136130969,0.0628,107460.0,107450.0,1.45693]
[1748136131177,0.0628,107460.0,107450.0,1.396177]
[1748136131395,0.0628,107460.0,107450.0,1.372441]
[1748136131605,0.06807913,107460.0,107450.0,1.38133319]
[1748136131814,0.0628,107460.0,107450.0,1.38133319]
[1748136132021,0.0628,107460.0,107450.0,0.90392319]
[1748136132227,0.0628,107460.0,107450.0,1.24392319]
[1748136134341,0.0326,107460.0,107450.0,1.33346875]
[1748136134760,0.0326,107460.0,107450.0,1.34724583]
[1748136135206,0.0649,107460.0,107450.0,1.34724583]
[1748136136511,0.0649,107460.0,107450.0,1.06872583]
[1748136136711,0.07017913,107460.0,107450.0,0.36266927]
[1748136136947,0.0749,107460.0,107450.0,0.02266927]
[1748136137151,0.15444556,107460.0,107450.0,0.29225708]
[1748136137368,0.46148306,107460.0,107450.0,0.29225708]
[1748136137572,0.45857475,107460.0,107450.0,0.69593708]
[1748136137807,0.45857475,107460.0,107450.0,0.01377708]
[1748136138015,0.45857475,107460.0,107430.0,0.00050458]
[1748136138016,0.0743,107440.0,107430.0,0.00050458]
[1748136138218,0.0743,107440.0,107430.0,0.27898458]
[1748136138866,0.0743,107440.0,107430.0,0.29271483]
[1748136139409,0.0743,107440.0,107430.0,0.63271483]
[1748136141850,0.0743,107440.0,107430.0,0.63275483]
[1748136144819,0.0743,107440.0,107430.0,0.35423483]
[1748136144820,0.45797475,107440.0,107430.0,0.35423483]
[1748136145020,0.45797475,107440.0,107430.0,0.61902458]
[1748136145477,0.15384556,107440.0,107430.0,0.61902458]
[1748136146053,0.15675451,107440.0,107430.0,0.61902458]
[1748136147571,0.4608837,107440.0,107430.0,0.40422458]
[1748136147817,0.45797475,107440.0,107430.0,0.68274458]
[1748136148035,1.15467475,107440.0,107430.0,0.27902458]
[1748136150928,1.15467475,107440.0,107430.0,0.27906458]
[1748136155570,1.15467475,107440.0,107430.0,0.00050458]
[1748136155781,0.03707913,107390.0,107380.0,0.34]
[1748136155990,0.03707913,107390.0,107380.0,0.822686]
[1748136156201,0.00527913,107390.0,107380.0,0.822686]
[1748136157056,0.0057829,107390.0,107380.0,0.822726]
[1748136157467,0.0057829,107390.0,107380.0,1.783686]
[1748136158916,0.0057829,107390.0,107380.0,1.226526]
[1748136159289,0.0695829,107390.0,107380.0,0.544126]
[1748136159481,0.0695829,107390.0,107380.0,0.822726]
[1748136160347,0.0375829,107390.0,107380.0,0.822726]
[1748136160567,0.0057829,107390.0,107380.0,0.822726]
[1748136160972,0.0057829,107390.0,107380.0,0.83658541]
[1748136163716,0.0057829,107390.0,107380.0,0.55798541]
[1748136163889,0.0370829,107390.0,107380.0,0.84648141]
[1748136165555,0.0370829,107390.0,107380.0,0.56788141]
[1748136165758,0.0370829,107390.0,107380.0,0.84648141]
[1748136166102,0.0057829,107390.0,107380.0,0.84648141]
[1748136166325,0.00050377,107390.0,107380.0,1.00342418]
[1748136166586,0.00050377,107390.0,107380.0,0.97866782]
[1748136166796,0.00050377,107390.0,107380.0,0.98754043]
[1748136167630,0.00050377,107390.0,107380.0,1.94722043]
[1748136167958,0.00050377,107390.0,107380.0,1.39002043]
[1748136168533,0.00050377,107390.0,107380.0,1.40112925]
[1748136168734,1e-08,107390.0,107380.0,1.40112925]
[1748136168946,1e-08,107390.0,107380.0,1.02340561]
[1748136170456,0.00468057,107410.0,107390.0,0.01454085]
[1748136170671,0.00468057,107410.0,107400.0,1.047356]
[1748136170881,0.00468057,107410.0,107400.0,1.011442]
[1748136171679,0.00468057,107410.0,107400.0,1.02031461]
[1748136172711,0.00468057,107410.0,107400.0,1.40974517]
[1748136172949,0.0631,107420.0,107400.0,1.43450153]
[1748136173139,0.06778057,107420.0,107410.0,0.82140673]
[1748136173356,0.06778057,107420.0,107410.0,0.634507]
[1748136173561,0.06778057,107420.0,107410.0,0.61106]
[1748136173976,0.06778057,107420.0,107410.0,0.506683]
[1748136174223,0.07778057,107420.0,107410.0,0.2786]
[1748136174433,0.00468057,107420.0,107410.0,0.2786]
[1748136174620,0.00468057,107420.0,107410.0,0.88625161]
[1748136174822,0.00468057,107420.0,107410.0,0.83941161]
[1748136175029,0.06798057,107420.0,107410.0,0.83941161]
[1748136175866,0.06798057,107420.0,107410.0,0.78774861]
[1748136176075,0.06798057,107420.0,107410.0,0.61073461]
[1748136177527,0.06798057,107420.0,107410.0,1.57033461]
[1748136177731,0.06798057,107420.0,107410.0,1.01317461]
[1748136178282,0.06798057,107420.0,107410.0,0.61073461]
[1748136178699,0.06798057,107420.0,107410.0,0.41295461]
[1748136178909,0.06798057,107420.0,107400.0,0.22650702]
[1748136179055,0.06798057,107420.0,107400.0,0.08954556]
[1748136179986,0.06798057,107420.0,107410.0,0.2786]
[1748136180787,0.06798057,107420.0,107410.0,0.6186]
[1748136185393,0.064,107430.0,107410.0,1.23530941]
[1748136185663,0.0023894,107430.0,107420.0,1.21605159]
[1748136185869,0.0337894,107440.0,107420.0,1.21490056]
[1748136186076,0.0337894,107440.0,107430.0,0.62666979]
[1748136186288,0.0337894,107440.0,107430.0,0.625519]
[1748136187536,0.0437894,107450.0,107430.0,1.67466456]
[1748136187740,0.0437894,107450.0,107440.0,0.2797505]
[1748136187921,0.0437894,107450.0,107440.0,0.2786]
[1748136188455,0.0741894,107450.0,107440.0,0.2786]
[1748136189246,0.0741894,107450.0,107440.0,0.29268778]
[1748136189921,0.0641894,107450.0,107440.0,0.29268778]
[1748136190559,0.0023894,107450.0,107440.0,1.38067234]
[1748136190799,0.0650894,107450.0,107440.0,0.51455034]
[1748136191214,0.0650894,107450.0,107440.0,0.52341833]
[1748136193122,0.0650894,107450.0,107440.0,0.86341833]
[1748136197169,0.0650894,107450.0,107440.0,0.58481833]
[1748136197372,0.0346894,107450.0,107440.0,0.86333833]
[1748136197534,0.0346894,107450.0,107440.0,1.82121833]
[1748136200824,0.0346894,107450.0,107440.0,0.86333833]
[1748136202184,0.0323,107450.0,107440.0,0.86333833]
[1748136202395,0.0346894,107450.0,107440.0,0.86333833]
[1748136203354,0.0346894,107450.0,107440.0,0.68436158]
[1748136203777,0.0346894,107450.0,107440.0,1.18430099]
[1748136203980,0.0346894,107450.0,107440.0,0.83043799]
[1748136204195,0.0346894,107450.0,107440.0,1.10895799]
[1748136204595,0.0346894,107450.0,107440.0,1.09812299]
[1748136207248,1.09091419,107490.0,107460.0,0.0328]
[1748136207249,0.0797581,107490.0,107460.0,0.0328]
[1748136207479,0.07990938,107490.0,107480.0,0.34]
[1748136207678,0.07990938,107490.0,107480.0,0.901597]
[1748136207836,0.07990938,107490.0,107480.0,0.773296]
[1748136208479,0.07990938,107490.0,107480.0,0.78216399]
[1748136208680,0.07990938,107490.0,107480.0,0.74244999]
[1748136209061,0.07990938,107490.0,107480.0,0.65913999]
[1748136209264,0.08990938,107490.0,107480.0,0.00886799]
[1748136209465,0.02630938,107490.0,107460.0,0.02786]
[1748136209677,0.01,107480.0,107460.0,0.02786]
[1748136209877,0.16605316,107480.0,107470.0,0.61848]
[1748136210503,0.0736,107460.0,107450.0,0.01110882]
[1748136210725,0.0736,107460.0,107450.0,0.37848]
[1748136211134,0.0736,107460.0,107450.0,0.27848]
[1748136214387,0.0324,107460.0,107450.0,1.2168753]
[1748136215873,0.0324,107460.0,107450.0,1.0561263]
[1748136216118,0.0638,107460.0,107450.0,0.4093533]
[1748136217482,0.0638,107460.0,107450.0,1.3670333]
[1748136218107,0.0638,107460.0,107450.0,0.8101533]
[1748136218808,0.0638,107460.0,107450.0,0.4093533]
[1748136219263,0.0619,107480.0,107450.0,0.53159886]
[1748136219461,0.0619,107480.0,107460.0,1.65512586]
[1748136219671,0.0619,107480.0,107450.0,0.40960186]
[1748136219855,0.0619,107480.0,107460.0,1.99684727]
[1748136220104,0.0619,107480.0,107460.0,0.10408641]
[1748136220310,0.0619,107480.0,107460.0,0.18523518]
[1748136220517,0.0619,107480.0,107460.0,0.18408641]
[1748136220728,0.0619,107480.0,107460.0,0.19296271]
[1748136220934,0.0311,107480.0,107470.0,0.578391]
[1748136221785,0.07860938,107490.0,107470.0,0.5872673]
[1748136222024,0.07860938,107490.0,107480.0,0.78299427]
[1748136222243,0.07860938,107490.0,107480.0,0.781846]
[1748136222678,0.07860938,107490.0,107480.0,0.7907223]
[1748136224989,0.07860938,107490.0,107480.0,0.7292753]
[1748136226059,0.07860938,107490.0,107480.0,0.720399]
[1748136226484,0.07860938,107490.0,107480.0,0.543028]
[1748136227145,0.07860938,107490.0,107480.0,0.02292314]
[1748136227363,0.07860938,107490.0,107460.0,0.22789523]
[1748136227616,0.07860938,107490.0,107470.0,3.08708356]
[1748136227831,0.07860938,107490.0,107470.0,2.60687056]
[1748136228044,0.07860938,107490.0,107480.0,0.235778]
[1748136228425,0.07860938,107490.0,107480.0,0.27844]
[1748136229378,0.07860938,107490.0,107480.0,0.40125]
[1748136235113,0.07860938,107490.0,107480.0,0.41012715]